bitfinex-derivatives/quotes_ETHF0:USTF0_20250224
["timestamp","ask_amount","ask_price","bid_price","bid_amount"]
[1740413719296,3.95792,2666.2,2665.9,0.75019]
[1740413719700,3.95792,2666.2,2665.6,1.3321]
[1740413719701,3.2078,2666.2,2665.6,1.3321]
[1740413720002,0.75004,2666.5,2666.3,0.75008]
[1740413720303,5.08263,2666.9,2666.3,3.2078]
[1740413720304,0.75569324,2666.4,2666.3,3.2078]
[1740413721395,0.00562324,2666.4,2666.3,3.95788]
[1740413721601,1.87448,2667.4,2666.3,11.08298]
[1740413721796,0.06156047,2667.3,2666.6,3.2078]
[1740413721994,0.74988,2667.1,2666.6,3.2078]
[1740413722303,0.6697,2667.5,2666.9,3.2078]
[1740413722498,5.51628,2667.7,2666.9,3.2078]
[1740413722796,0.74984,2667.2,2667.0,0.74988]
[1740413723000,0.00562324,2667.6,2666.9,3.2078]
[1740413723189,0.00562324,2667.6,2667.2,3.2078]
[1740413723498,0.00562324,2667.6,2667.4,0.74975]
[1740413723697,0.00562324,2667.6,2667.5,3.95755]
[1740413724104,0.00562324,2667.6,2667.5,12.93955]
[1740413724299,3.8727,2668.8,2668.3,0.74952]
[1740413724605,3.641,2669.3,2668.4,3.2078]
[1740413724901,0.74939,2668.8,2668.5,0.74945]
[1740413725094,0.74939,2668.8,2668.3,3.2078]
[1740413725297,3.2078,2669.1,2668.9,0.74935]
[1740413725495,0.00562324,2668.8,2668.6,0.74943]
[1740413725690,0.00562324,2668.8,2668.3,3.21342324]
[1740413725904,0.00562324,2668.8,2668.7,0.74941]
[1740413726299,0.00562324,2668.8,2668.3,3.21342324]
[1740413726606,0.74949,2668.4,2668.3,0.00562324]
[1740413727314,0.74969,2667.7,2667.6,0.6559]
[1740413727504,3.95748,2667.8,2667.4,0.74976]
[1740413727700,0.6664,2668.1,2667.2,3.2078]
[1740413727908,0.74962,2668.0,2667.2,3.2078]
[1740413728204,3.64,2668.4,2667.4,3.2078]
[1740413728406,0.06153308,2668.3,2667.4,3.2078]
[1740413728699,0.74953,2668.3,2667.9,0.74962]
[1740413728892,0.74951,2668.4,2668.0,0.74959]
[1740413729204,3.2078,2668.5,2667.8,3.2078]
[1740413729499,3.2078,2668.3,2667.6,3.85952324]
[1740413729704,3.2078,2668.3,2667.6,0.00562324]
[1740413730004,6.8468,2668.3,2667.9,0.74962]
[1740413730205,0.74956,2668.2,2667.9,0.74962]
[1740413730403,6.8468,2668.3,2667.8,0.74965]
[1740413730606,0.74956,2668.2,2667.9,0.74963]
[1740413730801,7.59633,2668.3,2667.6,0.00562324]
[1740413730999,3.639,2668.7,2667.8,3.2078]
[1740413731200,0.74959,2668.1,2667.6,0.00562324]
[1740413731399,0.74959,2668.1,2667.8,0.74965]
[1740413731605,3.2078,2668.5,2667.6,0.00562324]
[1740413731803,0.74963,2668.0,2667.6,0.75532324]
[1740413732004,6.8458,2668.2,2667.6,0.75532324]
[1740413732299,3.2078,2667.9,2667.6,0.00562324]
[1740413732506,0.74985,2667.2,2666.6,3.8398]
[1740413732804,3.2078,2667.4,2666.9,0.7499]
[1740413733010,3.638,2667.6,2667.3,0.7498]
[1740413733201,6.8458,2667.9,2666.9,3.2078]
[1740413733506,6.8458,2667.9,2667.3,3.2078]
[1740413733507,3.638,2667.9,2667.3,3.2078]
[1740413733699,0.00562324,2667.7,2667.6,0.74972]
[1740413733901,0.00562324,2667.7,2667.4,0.74975]
[1740413734106,0.00562324,2667.7,2667.4,0.74977]
[1740413734304,0.74974,2667.6,2667.3,3.2078]
[1740413734508,0.74974,2667.6,2667.3,3.95759]
[1740413734705,0.00562324,2667.7,2667.3,3.2078]
[1740413735101,0.00562324,2667.7,2667.6,0.74972]
[1740413735305,0.00562324,2667.7,2667.6,3.95752]
[1740413735810,0.00562324,2667.7,2667.6,0.74972]
[1740413736111,0.00562324,2667.7,2667.6,3.95752]
[1740413736506,0.00562324,2667.7,2667.6,0.74972]
[1740413736707,0.74973,2667.6,2667.4,3.9001]
[1740413736904,0.00562324,2667.7,2667.6,0.74972]
[1740413737510,0.75531324,2667.7,2667.6,0.74972]
[1740413737706,0.00562324,2667.7,2667.4,3.9001]
[1740413737915,0.74975,2667.5,2667.4,0.6923]
[1740413738109,0.38022324,2667.7,2667.2,0.74982]
[1740413738414,2.2489,2667.6,2667.0,3.8749]
[1740413738711,0.3746,2667.5,2667.2,0.74982]
[1740413738911,0.3746,2667.5,2667.3,0.74979]
[1740413739112,0.3746,2667.4,2667.0,3.8749]
[1740413739304,5.08767324,2667.7,2667.0,3.8749]
[1740413739305,0.00562324,2667.7,2667.0,3.8749]
[1740413739509,0.74974,2667.6,2667.4,0.74977]
[1740413739815,0.38022324,2667.7,2667.1,3.2078]
[1740413740014,0.74975,2667.5,2667.0,0.6671]
[1740413740215,0.74975,2667.5,2667.4,0.74977]
[1740413740410,0.38022324,2667.7,2667.2,3.2078]
[1740413740708,0.74982,2667.3,2667.0,0.6671]
[1740413740914,0.74984,2667.2,2667.0,0.6671]
[1740413741106,0.74984,2667.2,2667.0,1.41697]
[1740413741508,0.74984,2667.2,2667.1,0.74986]
[1740413741814,0.00562324,2667.7,2667.4,0.74977]
[1740413742013,0.7498,2667.4,2667.2,0.74982]
[1740413742518,0.74978,2667.4,2667.2,0.7498]
[1740413742916,0.74978,2667.4,2667.3,0.7498]
[1740413743216,0.7498,2667.3,2667.2,0.74982]
[1740413743718,0.74979,2667.4,2667.2,0.74982]
[1740413744217,1.8743,2667.6,2667.0,3.8749]
[1740413744417,1.87987324,2667.7,2667.0,3.8749]
[1740413744613,0.74979,2667.4,2667.3,0.7498]
[1740413744911,0.7498,2667.3,2667.2,0.74982]
[1740413745121,0.7498,2667.3,2667.0,3.8749]
[1740413745122,0.00562324,2667.7,2667.0,3.8749]
[1740413745620,0.00562324,2667.7,2667.3,3.2078]
[1740413752516,0.00562324,2667.7,2667.3,6.1898]
[1740413752916,3.2078,2667.5,2667.3,2.982]
[1740413753918,0.65872324,2667.7,2667.3,2.982]
[1740413753919,0.00562324,2667.7,2667.3,2.982]
[1740413754124,0.00562324,2667.7,2667.4,3.2078]
[1740413754426,0.00562324,2667.7,2667.4,5.2161]
[1740413754623,0.00562324,2667.7,2667.5,40.8]
[1740413754815,0.00562324,2667.7,2667.4,5.2161]
[1740413755125,1.87986324,2667.7,2667.4,2.0083]
[1740413755325,0.74975,2667.5,2667.4,1.3193]
[1740413755521,0.74977,2667.4,2667.3,2.982]
[1740413757019,0.74975,2667.5,2667.3,2.982]
[1740413757219,0.00562324,2667.7,2667.4,0.6628]
[1740413757428,0.00562324,2667.7,2667.6,0.74972]
[1740413757623,0.00562324,2667.7,2667.6,3.95752]
[1740413758322,16.94804059,2668.4,2667.6,3.2078]
[1740413758522,16.94804059,2668.4,2667.9,3.2078]
[1740413758920,13.74024059,2668.4,2668.1,0.74957]
[1740413759121,0.74952,2668.3,2668.1,0.74957]
[1740413759423,1.87381,2668.3,2667.6,6.8408]
[1740413759628,0.74963,2668.0,2667.6,6.8408]
[1740413759823,0.74957,2668.2,2668.0,0.74958]
[1740413760023,0.74961,2668.0,2667.9,0.74962]
[1740413760431,2.24843,2668.3,2667.7,0.00562324]
[1740413760720,13.74024059,2668.4,2667.8,1.87416]
[1740413760925,13.74024059,2668.4,2667.9,3.2078]
[1740413761128,0.74954,2668.3,2668.2,0.74954]
[1740413761326,13.74024059,2668.4,2667.9,3.2078]
[1740413761527,0.74957,2668.2,2668.1,0.74956]
[1740413761830,0.74957,2668.2,2668.1,0.6818]
[1740413762027,0.74961,2668.0,2667.9,3.2078]
[1740413762525,0.74966,2667.8,2667.7,0.00562324]
[1740413762926,1.87379,2668.4,2667.7,0.00562324]
[1740413763126,1.87379,2668.4,2667.9,3.2078]
[1740413763327,0.74961,2668.0,2667.9,0.74962]
[1740413763523,0.74963,2667.9,2667.8,0.6906]
[1740413763726,6.84542324,2668.5,2667.8,0.6906]
[1740413763929,0.74953,2668.3,2668.2,0.74953]
[1740413764132,3.21342324,2668.5,2668.2,0.74953]
[1740413764133,0.00562324,2668.5,2668.2,3.2078]
[1740413764326,0.00562324,2668.5,2668.4,0.74949]
[1740413764523,0.3746,2669.2,2668.6,1.87357]
[1740413764836,0.3746,2669.2,2668.8,0.74938]
[1740413765032,0.7494,2668.8,2668.6,4.38143]
[1740413765228,1.87328,2669.1,2668.5,0.6439]
[1740413765429,0.74942,2668.7,2668.5,0.6439]
[1740413765629,0.3746,2669.0,2668.5,0.6439]
[1740413765836,0.00562324,2669.1,2668.5,0.6439]
[1740413766030,0.00562324,2669.1,2668.7,3.2078]
[1740413766230,0.00562324,2669.1,2669.0,0.74932]
[1740413766831,0.00562324,2669.1,2669.0,2.07762]
[1740413767040,0.00562324,2669.1,2669.0,5.28542]
[1740413768033,17.3646256,2669.9,2669.4,0.74919]
[1740413768034,0.74919,2669.5,2669.4,0.74919]
[1740413769040,0.74923,2669.4,2669.3,0.74923]
[1740413769338,0.74917,2669.6,2669.5,0.74917]
[1740413769534,0.00562324,2669.7,2669.5,0.74917]
[1740413769741,0.75478324,2669.7,2669.5,0.74917]
[1740413770040,0.74916,2669.6,2669.5,0.74917]
[1740413770238,0.00562324,2669.7,2669.2,3.21342324]
[1740413770435,0.75475324,2669.7,2669.6,0.74916]
[1740413771045,0.74917,2669.6,2669.5,0.74917]
[1740413771239,0.00562324,2669.7,2669.2,3.90912324]
[1740413771733,3.95704,2669.3,2669.2,3.24e-06]
[1740413772134,10.39314911,2669.3,2669.2,3.24e-06]
[1740413772348,10.39315901,2669.3,2669.2,3.24e-06]
[1740413772546,10.39315901,2669.3,2667.7,3.2078]
[1740413772547,1.87392,2668.2,2667.7,3.2078]
[1740413772751,0.74962,2668.0,2667.7,3.95748]
[1740413773152,0.7496,2668.1,2667.7,3.2078]
[1740413773352,1.3516,2668.6,2667.7,3.2078]
[1740413773552,0.74966,2667.8,2667.7,3.2078]
[1740413774256,0.74972,2667.6,2667.5,0.00562324]
[1740413775050,3.2078,2668.0,2667.5,0.00562324]
[1740413775250,0.74964,2667.9,2667.6,0.74971]
[1740413775450,3.2078,2668.0,2667.5,3.21342324]
[1740413775451,0.7497,2667.7,2667.5,3.21342324]
[1740413775657,0.74972,2667.6,2667.5,0.00562324]
[1740413776757,0.74986,2667.1,2667.0,3.2078]
[1740413776951,0.74994,2666.8,2666.7,2.982]
[1740413778349,0.00562324,2667.0,2666.7,2.982]
[1740413778659,0.74994,2666.9,2666.7,2.982]
[1740413779054,0.00562324,2667.0,2666.7,2.982]
[1740413779254,0.00562324,2667.0,2666.8,0.74994]
[1740413779454,0.00562324,2667.0,2666.9,0.74991]
[1740413779949,0.00562324,2667.0,2666.9,1.40821]
[1740413780252,3.2078,2667.7,2667.1,0.74984]
[1740413780455,0.74983,2667.2,2667.1,3.2078]
[1740413780651,5.08208,2667.7,2667.1,3.2078]
[1740413780852,0.74981,2667.3,2667.1,3.95765]
[1740413781051,0.74983,2667.2,2667.1,3.2078]
[1740413781359,0.00562324,2667.5,2667.1,3.2078]
[1740413781558,0.74983,2667.2,2667.1,3.2078]
[1740413781960,0.00562324,2667.5,2667.1,3.2078]
[1740413782156,0.00562324,2667.5,2667.4,0.74977]
[1740413782355,0.00562324,2667.5,2667.4,7.58557]
[1740413782559,0.75537324,2667.5,2667.4,6.8358]
[1740413782955,0.75537324,2667.5,2667.4,7.58557]
[1740413783461,0.00562324,2667.5,2667.4,0.74977]
[1740413783664,0.00562324,2667.5,2667.4,9.95757]
[1740413783859,3.24216,2668.8,2667.4,9.2078]
[1740413784061,1.87339,2668.9,2668.2,3.2078]
[1740413784259,3.2078,2669.0,2668.2,6.8358]
[1740413784463,1.87328,2669.1,2668.5,3.2078]
[1740413784664,0.6979,2669.3,2668.8,3.2078]
[1740413784854,0.6979,2669.3,2668.6,1.8736]
[1740413784855,0.74929,2669.2,2669.1,0.74929]
[1740413785053,0.00562324,2669.3,2669.2,0.74927]
[1740413785466,0.75486324,2669.3,2669.2,0.74927]
[1740413785663,0.75486324,2669.3,2669.1,3.9571]
[1740413785664,0.74927,2669.2,2669.1,3.9571]
[1740413785858,0.74927,2669.2,2669.1,3.2078]
[1740413786367,0.00562324,2669.3,2669.1,3.95708]
[1740413786564,0.00562324,2669.3,2669.2,0.74927]
[1740413787060,0.74927,2669.2,2669.1,3.2078]
[1740413788063,0.00562324,2669.3,2669.1,3.2078]
[1740413788064,0.00562324,2669.3,2669.2,0.74927]
[1740413788665,0.75487324,2669.3,2669.1,3.95708]
[1740413788866,0.7493,2669.1,2669.0,3.626]
[1740413789062,0.00562324,2669.3,2668.9,0.6912]
[1740413789263,0.00562324,2669.3,2669.2,0.74927]
[1740413789769,0.00562324,2669.3,2668.9,0.6912]
[1740413789770,0.7493,2669.1,2668.9,0.6912]
[1740413789964,0.00562324,2669.3,2668.9,0.6912]
[1740413789965,0.74932,2669.0,2668.9,0.6912]
[1740413790158,0.00562324,2669.3,2668.8,3.21342324]
[1740413790355,0.00562324,2669.3,2668.8,0.75498324]
[1740413790564,0.74935,2668.9,2668.8,0.00562324]
[1740413790763,0.74934,2669.0,2668.8,0.00562324]
[1740413791065,0.00562324,2669.3,2668.8,0.00562324]
[1740413791268,0.74931,2669.1,2669.0,0.74932]
[1740413791570,0.74927,2669.2,2669.1,0.74929]
[1740413792165,0.74929,2669.2,2669.1,0.74928]
[1740413792365,0.00562324,2669.3,2669.0,3.2078]
[1740413792671,0.74928,2669.2,2669.1,0.74927]
[1740413793171,0.00562324,2669.3,2669.0,3.2078]
[1740413793368,0.7493,2669.1,2669.0,3.95711]
[1740413793671,0.74929,2669.2,2669.1,0.74929]
[1740413793860,0.75488324,2669.3,2669.2,0.74927]
[1740413794065,0.00562324,2669.3,2669.2,0.74927]
[1740413794268,0.75486324,2669.3,2669.2,0.74927]
[1740413794463,0.00562324,2669.3,2669.2,0.74927]
[1740413794867,0.00562324,2669.3,2669.0,0.6736]
[1740413795068,0.7493,2669.1,2669.0,0.6736]
[1740413795473,0.74928,2669.2,2669.1,0.74928]
[1740413795772,0.7493,2669.1,2669.0,1.42291]
[1740413795974,0.00562324,2669.3,2669.0,0.6736]
[1740413796273,0.7493,2669.1,2669.0,1.42291]
[1740413796468,0.7493,2669.1,2669.0,0.6736]
[1740413796669,0.7493,2669.1,2669.0,1.42292]
[1740413796868,0.00562324,2669.3,2669.0,0.6736]
[1740413797074,0.00562324,2669.3,2669.2,3.95707]
[1740413797674,0.00562324,2669.3,2669.2,4.59687]
[1740413798174,0.00562324,2669.3,2669.2,3.8476]
[1740413798773,0.00562324,2669.3,2669.2,0.6398]
[1740413799470,0.00562324,2669.3,2669.2,3.8476]
[1740413800064,0.00562324,2669.3,2669.2,0.6398]
[1740413800271,0.00562324,2669.3,2669.2,3.8476]
[1740413802177,0.00562324,2669.3,2669.2,6.8296]
[1740413804179,1.3223,2670.4,2669.2,6.8296]
[1740413804180,0.6477,2670.4,2669.2,13.4696]
[1740413804379,0.6477,2670.4,2669.8,3.2078]
[1740413804576,3.8555,2670.4,2669.8,6.1898]
[1740413804780,3.8555,2670.4,2669.4,2.146]
[1740413804781,3.2078,2670.1,2669.5,2.982]
[1740413805178,0.6718,2670.0,2669.5,2.982]
[1740413805378,3.2078,2669.7,2669.5,2.982]
[1740413805584,3.2078,2669.7,2669.2,0.6398]
[1740413805978,3.2078,2669.7,2669.2,3.8476]
[1740413806786,3.621,2669.9,2669.2,3.8476]
[1740413809280,3.2078,2669.6,2669.1,2.982]
[1740413809687,3.2078,2669.3,2669.1,2.982]
[1740413809980,0.6401,2669.2,2669.1,2.982]
[1740413811287,0.6401,2669.2,2668.8,0.00562324]
[1740413811478,0.74935,2668.9,2668.8,0.00562324]
[1740413812581,4.74465,2668.9,2668.8,0.00562324]
[1740413812782,4.36935,2668.9,2668.8,0.00562324]
[1740413812982,0.74961,2668.0,2667.9,3.2078]
[1740413813590,0.74956,2668.2,2667.9,3.95742]
[1740413813783,0.74959,2668.1,2667.9,3.2078]
[1740413813981,3.2078,2668.5,2667.9,3.2078]
[1740413814186,0.74955,2668.2,2667.9,3.2078]
[1740413814380,0.74959,2668.1,2667.9,3.2078]
[1740413814877,0.00562324,2668.3,2667.9,3.2078]
[1740413815083,3.2078,2668.1,2667.7,1.37232324]
[1740413815281,0.00562324,2668.3,2667.7,1.37232324]
[1740413815481,0.74962,2668.0,2667.7,2.12200324]
[1740413815689,0.74964,2667.9,2667.7,1.37232324]
[1740413815892,0.74966,2667.8,2667.7,1.37232324]
[1740413816290,0.74966,2667.8,2667.7,0.00562324]
[1740413817285,3.95746,2667.8,2667.7,0.00562324]
[1740413818792,1.87425,2667.7,2666.8,2.982]
[1740413819094,0.74994,2666.8,2666.7,0.6755]
[1740413819291,3.2078,2667.3,2666.7,0.6755]
[1740413819490,0.74994,2666.9,2666.7,0.6755]
[1740413819690,0.74994,2666.8,2666.7,0.6755]
[1740413819993,1.87458,2667.2,2666.5,3.21342324]
[1740413820191,1.87465,2667.1,2666.5,3.21342324]
[1740413820589,0.74996,2666.8,2666.5,3.96344324]
[1740413820785,0.00562324,2667.1,2666.5,3.21342324]
[1740413821184,0.75,2666.6,2666.5,0.00562324]
[1740413821985,4.5997,2666.7,2665.6,3.8515]
[1740413821986,0.75021,2665.9,2665.6,3.8515]
[1740413822208,0.75025,2665.8,2665.6,3.8515]
[1740413822392,6.8268,2666.3,2665.6,3.8515]
[1740413822689,6.8268,2666.3,2665.6,4.60177]
[1740413822895,0.75021,2665.9,2665.6,3.8515]
[1740413823101,6.8268,2666.3,2665.6,3.8515]
[1740413823102,0.75023,2665.8,2665.6,3.8515]
[1740413823390,3.2078,2666.0,2665.6,0.6437]
[1740413823596,0.75025,2665.7,2665.6,0.6437]
[1740413823794,0.75028,2665.7,2665.5,2.98762324]
[1740413823991,3.2078,2666.0,2665.5,2.98762324]
[1740413824291,0.75028,2665.6,2665.5,2.98762324]
[1740413824490,3.2078,2666.0,2665.2,3.2078]
[1740413824791,1.87564,2665.7,2664.9,3.2078]
[1740413824994,6.8278,2665.8,2664.9,3.2078]
[1740413825195,0.75041,2665.2,2664.9,3.2078]
[1740413825692,6.8278,2665.8,2664.9,3.2078]
[1740413825898,0.7504,2665.2,2664.9,3.95827]
[1740413826189,0.75043,2665.1,2664.9,3.2078]
[1740413826390,0.00562324,2665.3,2664.9,3.2078]
[1740413826590,0.75046,2665.0,2664.7,0.75053]
[1740413826888,0.00562324,2665.3,2664.6,3.2078]
[1740413827095,0.75046,2665.0,2664.7,0.75053]
[1740413827289,0.00562324,2665.3,2664.6,3.50875349]
[1740413827496,0.00562324,2665.3,2664.7,0.75052]
[1740413827788,0.00562324,2665.3,2665.2,3.95819]
[1740413827992,1.87555,2665.9,2665.0,2.0198]
[1740413828188,3.2078,2666.0,2665.1,0.75042]
[1740413828493,1.87557,2665.8,2665.0,2.0198]
[1740413828694,0.75034,2665.4,2665.2,3.95818]
[1740413828993,0.75036,2665.3,2665.2,3.2078]
[1740413829395,1.88137324,2665.6,2665.0,2.02542324]
[1740413829396,0.75042,2665.1,2665.0,2.02542324]
[1740413829694,0.75037,2665.3,2665.1,0.7504]
[1740413829893,0.75038,2665.3,2665.1,0.7504]
[1740413830190,0.75042,2665.1,2665.0,2.02542324]
[1740413830392,0.75042,2665.1,2665.0,0.68572324]
[1740413830696,3.95822,2665.1,2665.0,0.00562324]
[1740413830891,3.95822,2665.1,2664.5,0.6838]
[1740413830892,0.75056,2664.6,2664.5,0.6838]
[1740413831195,0.75059,2664.5,2664.4,2.982]
[1740413831492,0.75059,2664.5,2664.3,3.95843]
[1740413831687,0.75062,2664.4,2664.3,3.2078]
[1740413833090,0.75068,2664.2,2664.0,0.75073]
[1740413833393,5.08421,2664.6,2663.8,5.26782908]
[1740413833692,0.75072,2664.1,2663.8,5.72007]
[1740413833996,0.75074,2664.0,2663.8,5.72007]
[1740413834289,0.75069,2664.2,2663.9,0.75075]
[1740413834492,0.00562324,2664.5,2663.8,1.3493]
[1740413835089,0.75068,2664.2,2664.0,0.75071]
[1740413835388,0.00562324,2664.5,2663.8,1.3493]
[1740413835591,0.00562324,2664.5,2664.4,0.75062]
[1740413836390,0.75062,2664.4,2664.3,0.6972]
[1740413836592,0.00562324,2664.5,2664.4,0.75062]
[1740413836990,0.75062,2664.4,2664.3,42.24783]
[1740413837191,0.75062,2664.4,2664.3,41.4972]
[1740413837399,0.00562324,2664.5,2664.4,0.75062]
[1740413837594,0.3753,2665.2,2664.6,1.87639]
[1740413837891,0.75051,2664.8,2664.7,3.95831]
[1740413838089,1.87585,2665.4,2664.7,3.2078]
[1740413838389,1.87577,2665.6,2664.4,1.42212]
[1740413838390,3.27353,2665.9,2665.0,5.0839]
[1740413838592,0.75039,2665.2,2665.1,1.3301]
[1740413838792,3.2078,2665.4,2664.3,40.8]
[1740413838997,3.62,2665.6,2662.8,5.40613129]
[1740413838998,0.75059,2664.5,2664.4,0.6715]
[1740413839191,0.75067,2664.2,2664.1,3.2078]
[1740413839592,0.75067,2664.3,2664.1,3.2078]
[1740413839800,0.75067,2664.2,2664.1,3.2078]
[1740413840099,0.75066,2664.3,2663.9,0.70092324]
[1740413840299,0.3753,2664.5,2663.9,0.70092324]
[1740413840493,0.00562324,2664.4,2663.9,0.70092324]
[1740413840692,1.88222324,2664.4,2663.9,0.70092324]
[1740413840895,0.75073,2664.0,2663.9,0.00562324]
[1740413841096,0.00562324,2664.4,2663.9,0.00562324]
[1740413841591,0.00562324,2664.4,2664.3,0.75065]
[1740413841796,0.75065,2664.3,2664.2,0.75067]
[1740413841996,0.00562324,2664.4,2664.1,3.2078]
[1740413842492,0.75065,2664.3,2664.2,0.75066]
[1740413842693,0.00562324,2664.4,2663.9,0.00562324]
[1740413842899,1.88221324,2664.4,2663.9,0.00562324]
[1740413843098,0.75073,2664.0,2663.9,0.00562324]
[1740413847005,0.75098,2663.1,2663.0,1.3708]
[1740413847502,0.75101,2663.0,2662.9,3.2078]
[1740413847999,1.87736,2663.3,2662.7,1.3507]
[1740413848304,0.75107,2662.8,2662.7,1.3507]
[1740413848501,0.75107,2662.8,2662.7,0.6777]
[1740413849298,0.7511,2662.7,2662.6,3.2078]
[1740413849602,1.88320324,2663.0,2662.3,0.6007]
[1740413849801,0.75118,2662.4,2662.3,0.6007]
[1740413850002,5.08548,2662.8,2662.2,0.6836]
[1740413850505,0.75119,2662.4,2662.2,0.6836]
[1740413850701,5.08548,2662.8,2662.2,0.6836]
[1740413850702,0.75121,2662.3,2662.2,0.6836]
[1740413851299,3.2078,2662.8,2662.2,0.6836]
[1740413851501,0.75121,2662.3,2662.2,0.6836]
[1740413851897,0.75123,2662.3,2662.0,0.6007]
[1740413852210,0.75122,2662.3,2662.0,1.35199]
[1740413852411,1.87775,2662.7,2662.0,0.6007]
[1740413852596,0.75127,2662.1,2662.0,0.6007]
[1740413852802,3.2078,2662.1,2661.6,2.982]
[1740413853001,3.619,2662.0,2661.5,3.2078]
[1740413853300,7.4348,2662.7,2662.1,0.75124]
[1740413853507,0.75131,2662.0,2661.6,0.7514]
[1740413853705,0.75131,2662.0,2661.6,0.75139]
[1740413853910,3.2078,2662.4,2661.7,3.95918]
[1740413854210,3.2078,2662.4,2661.7,3.2078]
[1740413854400,3.619,2662.3,2661.7,3.2078]
[1740413854599,4.227,2662.7,2661.7,3.2078]
[1740413854797,0.75119,2662.4,2662.1,0.75126]
[1740413855001,1.87782,2662.6,2662.0,3.2078]
[1740413855195,0.75132,2662.0,2661.7,3.95918]
[1740413855403,0.75128,2662.1,2661.8,0.75135]
[1740413855701,3.2078,2662.5,2661.6,3.2078]
[1740413855906,3.2078,2662.5,2662.0,0.75129]
[1740413856106,3.2078,2662.5,2661.7,44.0078]
[1740413856301,3.2078,2662.5,2661.7,42.75916]
[1740413856506,3.2078,2662.5,2661.7,3.2078]
[1740413856705,0.75122,2662.3,2661.7,3.2078]
[1740413856905,3.62,2662.6,2662.0,3.2078]
[1740413857101,0.75114,2662.6,2662.4,0.75117]
[1740413857305,0.00562324,2663.0,2662.5,40.8]
[1740413857506,0.7511,2662.7,2662.6,3.2078]
[1740413857706,5.08541,2662.9,2662.3,3.619]
[1740413857903,0.00562324,2663.0,2662.4,3.2078]
[1740413858105,0.00562324,2663.0,2662.8,3.2078]
[1740413858304,0.75105,2662.9,2662.7,0.75109]
[1740413858599,0.00562324,2663.0,2662.8,3.2078]
[1740413859007,0.00562324,2663.0,2662.8,3.95886]
[1740413859210,0.75104,2662.9,2662.8,3.2078]
[1740413859406,0.00562324,2663.0,2662.9,0.75104]
[1740413859606,0.75664324,2663.0,2662.9,0.00314386]
[1740413860310,0.75664324,2663.0,2662.9,3.86e-06]
[1740413860513,1.37304324,2663.0,2662.9,3.86e-06]
[1740413861011,0.00562324,2663.0,2662.9,3.86e-06]
[1740413861217,0.00562324,2663.0,2662.9,3.20780386]
[1740413861708,0.75663324,2663.0,2662.9,3.86e-06]
[1740413862315,0.00562324,2663.0,2662.9,3.86e-06]
[1740413862709,0.75663324,2663.0,2662.9,3.86e-06]
[1740413863010,4.37563324,2663.0,2662.9,3.86e-06]
[1740413863209,5.59303324,2663.0,2662.9,3.86e-06]
[1740413863409,0.75663324,2663.0,2662.9,3.86e-06]
[1740413864104,1.13193324,2663.0,2662.9,3.86e-06]
[1740413864307,6.75663324,2663.0,2662.9,3.86e-06]
[1740413865509,0.75663324,2663.0,2662.9,3.86e-06]
[1740413865909,6.75663324,2663.0,2662.9,3.86e-06]
[1740413866116,0.75663324,2663.0,2662.9,3.86e-06]
[1740413867414,4.37463324,2663.0,2662.9,3.86e-06]
[1740413867612,10.37463324,2663.0,2662.9,3.86e-06]
[1740413867814,10.37463324,2663.0,2662.0,0.6072]
[1740413867815,10.24762324,2663.0,2662.0,0.6072]
[1740413868014,10.24762324,2663.0,2661.8,6.8307]
[1740413868015,3.2078,2662.3,2661.8,2.982]
[1740413868217,0.75138,2661.7,2661.6,0.6442]
[1740413868614,0.75133,2661.9,2661.7,0.75136]
[1740413868924,1.87813,2662.2,2661.6,0.6442]
[1740413869117,0.75137,2661.8,2661.6,4.6034]
[1740413869422,0.75137,2661.8,2661.6,1.3956]
[1740413869620,0.75138,2661.7,2661.6,0.6442]
[1740413869819,1.8781,2662.2,2661.6,0.6442]
[1740413870019,0.75138,2661.7,2661.6,0.6442]
[1740413871215,3.2078,2662.1,2661.6,4.60339]
[1740413871425,0.75138,2661.7,2661.6,4.60339]
[1740413871624,0.75138,2661.7,2661.6,0.6442]
[1740413872725,0.75138,2661.7,2661.6,1.39561]
[1740413872925,0.75138,2661.7,2661.6,0.6442]
[1740413873125,0.75144,2661.5,2661.4,0.6072]
[1740413873922,0.75144,2661.5,2661.4,1.35866]
[1740413874118,0.75144,2661.5,2661.4,0.6072]
[1740413874525,1.87831,2661.9,2661.4,0.6072]
[1740413874730,0.75144,2661.5,2661.4,0.6072]
[1740413875126,5.08619,2661.8,2661.3,3.2078]
[1740413875326,0.75155,2661.1,2661.0,3.2078]
[1740413875832,0.75151,2661.3,2661.1,0.75154]
[1740413876026,0.75149,2661.4,2661.2,0.7515]
[1740413876325,0.00563412,2661.7,2661.0,3.8058]
[1740413876326,1.88410412,2661.7,2661.0,3.8058]
[1740413876524,0.7515,2661.3,2661.1,0.75152]
[1740413876725,0.75148,2661.4,2661.2,0.7515]
[1740413876920,0.75148,2661.4,2661.0,3.8058]
[1740413877122,1.87853,2661.6,2661.0,3.2078]
[1740413877325,0.00563412,2661.7,2661.0,3.2078]
[1740413877629,0.00563412,2661.7,2661.3,3.2078]
[1740413877827,0.00563412,2661.7,2660.9,0.6275]
[1740413877828,0.00563412,2661.7,2661.6,3.95921]
[1740413878031,0.75133,2661.9,2661.6,6.8258]
[1740413878227,0.75133,2661.9,2661.7,0.6275]
[1740413878427,0.75135,2661.8,2661.7,0.6275]
[1740413878634,1.87799,2662.4,2661.7,0.6275]
[1740413878829,5.08575,2662.5,2661.8,3.2078]
[1740413879030,1.87796,2662.4,2661.7,1.37886]
[1740413879329,0.75129,2662.0,2661.9,0.00563412]
[1740413879729,0.00563412,2662.4,2661.9,0.00563412]
[1740413879929,0.75129,2662.0,2661.9,3.21343412]
[1740413880125,0.00563412,2662.4,2661.9,6.83043412]
[1740413880337,0.00563412,2662.4,2662.3,0.75121]